fUSD/lending_fUSD_20240105
["ID","MTS","AMOUNT","RATE_DAILY","PERIOD"]
[310244169,1704414677263,-501.68,0.00035616,2]
[310244170,1704414677273,-500.0,0.00035616,2]
[310244171,1704414677283,-500.0,0.00035616,2]
[310244172,1704414677292,-500.0,0.00035616,2]
[310244173,1704414677302,-500.0,0.00035616,2]
[310244174,1704414677311,-500.0,0.00035616,2]
[310244175,1704414677321,-584.65,0.00035616,2]
[310244176,1704414677331,-1517.74,0.00035616,2]
[310244177,1704414677341,-500.0,0.00035616,2]
[310244178,1704414677350,-939.87,0.00035616,2]
[310244179,1704414677359,-500.0,0.00035616,2]
[310244180,1704414677368,-2022.65,0.00035616,2]
[310244181,1704414677377,-647.31,0.00035616,2]
[310244182,1704414677388,-919.18,0.00035616,2]
[310244183,1704414677398,-500.0,0.00035616,2]
[310244184,1704414677407,-808.57,0.00035616,2]
[310244185,1704414677417,-500.0,0.00035616,2]
[310244186,1704414677427,-500.0,0.00035616,2]
[310244187,1704414677437,-695.92,0.00035616,2]
[310244188,1704414677447,-1527.38,0.00035616,2]
[310244189,1704414677457,-970.8,0.00035616,2]
[310244190,1704414677467,-500.0,0.00035616,2]
[310244191,1704414677477,-500.0,0.00035616,2]
[310244192,1704414677486,-500.0,0.00035616,2]
[310244193,1704414677496,-500.0,0.00035616,2]
[310244194,1704414677506,-893.29,0.00035616,2]
[310244195,1704414677516,-6653.01,0.00035616,2]
[310244196,1704414677526,-325.5,0.00035616,2]
[310244197,1704414677535,-500.0,0.00035616,2]
[310244198,1704414677544,-1177.25,0.00035616,2]
[310244199,1704414677554,-500.0,0.00035616,2]
[310244200,1704414677563,-1817.42,0.00035616,2]
[310244201,1704414677572,-500.0,0.00035616,2]
[310244202,1704414677582,-1325.73,0.00035616,2]
[310244203,1704414677592,-638.74,0.00035616,2]
[310244204,1704414677602,-1358.51,0.00035616,2]
[310244205,1704414677611,-500.0,0.00035616,2]
[310244206,1704414677621,-1081.26,0.00035616,2]
[310244207,1704414677632,-556.12,0.00035616,2]
[310244208,1704414677642,-500.0,0.00035616,2]
[310244209,1704414677651,-1314.11,0.00035616,2]
[310244210,1704414677660,-500.0,0.00035616,2]
[310244211,1704414677669,-4577.94,0.00035616,2]
[310244212,1704414677679,-21013.31,0.00035616,2]
[310244213,1704414677689,-500.0,0.00035616,2]
[310244214,1704414677698,-32339.89,0.00035616,2]
[310244215,1704414677708,-2096.26,0.00035616,2]
[310244216,1704414677718,-612.35,0.00035616,2]
[310244217,1704414677727,-509.98,0.00035616,2]
[310244218,1704414677736,-980.38,0.00035616,2]
[310244219,1704414677745,-970.25,0.00035616,2]
[310244220,1704414677755,-500.0,0.00035616,2]
[310244221,1704414677765,-153.84,0.00035616,2]
[310244222,1704414677777,-150.0,0.00035616,2]
[310244223,1704414677788,-155.0,0.00035617,2]
[310244224,1704414677798,-153.15240471,0.0003562,10]
[310244225,1704414677807,-153.15240471,0.0003562,10]
[310244226,1704414677816,-153.15240471,0.0003562,10]
[310244227,1704414677825,-153.15240471,0.0003562,10]
[310244228,1704414677834,-153.15240471,0.0003562,10]
[310244229,1704414677844,-153.15240471,0.0003562,10]
[310244230,1704414677853,-153.15240471,0.0003562,10]
[310244231,1704414677863,-153.15240471,0.0003562,10]
[310244232,1704414677873,-153.15240471,0.0003562,10]
[310244233,1704414677884,-153.15240471,0.0003562,10]
[310244234,1704414677894,-153.15240471,0.0003562,10]
[310244235,1704414677903,-153.15,0.0003562,10]
[310244236,1704414677912,-298.27901713,0.0003562,10]
[310244237,1704414677921,-298.27901713,0.0003562,10]
[310244238,1704414677930,-298.27901713,0.0003562,10]
[310244239,1704414677940,-298.27901713,0.0003562,10]
[310244240,1704414677949,-298.27901713,0.0003562,10]
[310244241,1704414677959,-298.27901713,0.0003562,10]
[310244242,1704414677969,-298.27901713,0.0003562,10]
[310244243,1704414677977,-298.27901713,0.0003562,10]
[310244244,1704414677987,-298.27901713,0.0003562,10]
[310244245,1704414677996,-298.27901713,0.0003562,10]
[310244246,1704414678005,-298.27901713,0.0003562,10]
[310244247,1704414678014,-298.27901713,0.0003562,10]
[310244248,1704414678023,-298.27901713,0.0003562,10]
[310244249,1704414678032,-298.27901713,0.0003562,10]
[310244250,1704414678040,-298.27901713,0.0003562,10]
[310244251,1704414678049,-298.27901713,0.0003562,10]
[310244252,1704414678059,-298.27901713,0.0003562,10]
[310244253,1704414678069,-298.27901713,0.0003562,10]
[310244254,1704414678079,-298.27901713,0.0003562,10]
[310244255,1704414678088,-298.27,0.0003562,10]
[310244256,1704414678097,-526.68516863,0.0003562,10]
[310244257,1704414678107,-526.68516863,0.0003562,10]
[310244258,1704414678117,-526.68516863,0.0003562,10]
[310244259,1704414678126,-526.68516863,0.0003562,10]
[310244260,1704414678136,-526.68516863,0.0003562,10]
[310244261,1704414678146,-526.68516863,0.0003562,10]
[310244262,1704414678155,-526.68516863,0.0003562,10]
[310244263,1704414678164,-526.68516863,0.0003562,10]
[310244264,1704414678173,-526.68516863,0.0003562,10]
[310244265,1704414678182,-526.68516863,0.0003562,10]
[310244266,1704414678192,-526.68516863,0.0003562,10]
[310244267,1704414678202,-526.68516863,0.0003562,10]
[310244268,1704414678211,-526.68516863,0.0003562,10]
[310244269,1704414678220,-526.68516863,0.0003562,10]
[310244270,1704414678230,-526.68516863,0.0003562,10]
[310244271,1704414678239,-526.68516863,0.0003562,10]
[310244272,1704414678249,-526.68516863,0.0003562,10]
[310244273,1704414678258,-526.68516863,0.0003562,10]
[310244274,1704414678268,-526.68516863,0.0003562,10]
[310244275,1704414678277,-526.68,0.0003562,10]
[310244276,1704414678287,-461.99816945,0.0003562,10]
[310244277,1704414678297,-461.99816945,0.0003562,10]
[310244278,1704414678307,-461.99816945,0.0003562,10]
[310244279,1704414678317,-461.99816945,0.0003562,10]
[310244280,1704414678327,-461.99816945,0.0003562,10]
[310244281,1704414678336,-461.99816945,0.0003562,10]
[310244282,1704414678346,-461.99816945,0.0003562,10]
[310244283,1704414678355,-461.99816945,0.0003562,10]
[310244284,1704414678365,-461.99816945,0.0003562,10]
[310244285,1704414678374,-461.99816945,0.0003562,10]
[310244286,1704414678384,-461.99816945,0.0003562,10]
[310244287,1704414678394,-461.99816945,0.0003562,10]
[310244288,1704414678404,-461.99816945,0.0003562,10]
[310244289,1704414678414,-461.99816945,0.0003562,10]
[310244290,1704414678423,-461.99816945,0.0003562,10]
[310244291,1704414678433,-461.99816945,0.0003562,10]
[310244292,1704414678443,-461.99816945,0.0003562,10]
[310244293,1704414678453,-461.99816945,0.0003562,10]
[310244294,1704414678463,-461.99816945,0.0003562,10]
[310244295,1704414678472,-461.99,0.0003562,10]
[310244296,1704414678482,-311.00445269,0.0003562,10]
[310244297,1704414678493,-311.00445269,0.0003562,10]
[310244298,1704414678502,-311.00445269,0.0003562,10]
[310244299,1704414678512,-311.00445269,0.0003562,10]
[310244300,1704414678521,-311.00445269,0.0003562,10]
[310244301,1704414678530,-311.00445269,0.0003562,10]
[310244302,1704414678539,-311.00445269,0.0003562,10]
[310244303,1704414678550,-311.00445269,0.0003562,10]
[310244304,1704414678560,-311.00445269,0.0003562,10]
[310244305,1704414678569,-311.00445269,0.0003562,10]
[310244306,1704414678579,-311.00445269,0.0003562,10]
[310244307,1704414678588,-311.00445269,0.0003562,10]
[310244308,1704414678598,-311.00445269,0.0003562,10]
[310244309,1704414678608,-311.00445269,0.0003562,10]
[310244310,1704414678617,-311.00445269,0.0003562,10]
[310244311,1704414678630,-311.00445269,0.0003562,10]
[310244312,1704414678640,-311.00445269,0.0003562,10]
[310244313,1704414678651,-311.00445269,0.0003562,10]
[310244314,1704414678661,-311.00445269,0.0003562,10]
[310244315,1704414678671,-311.0,0.0003562,10]
[310244316,1704414678680,-4625.45,0.000357,7]
[310244317,1704414678689,-917.31,0.000357,7]
[310244318,1704414678699,-13018.92,0.000357,7]
[310244319,1704414678708,-791.58,0.00035876,2]
[310244320,1704414678834,-175.0,0.0003588,2]
[310244321,1704414678843,-500.0,0.0003589,2]
[310244322,1704414678853,-500.0,0.0003589,2]
[310244323,1704414678863,-500.0,0.0003589,2]
[310244324,1704414678872,-500.0,0.0003589,2]
[310244325,1704414678882,-500.0,0.0003589,2]
[310244326,1704414678891,-500.0,0.0003589,2]
[310244327,1704414678901,-512.12,0.0003589,2]
[310244328,1704414678910,-500.0,0.0003589,2]
[310244329,1704414678919,-500.0,0.0003589,2]
[310244330,1704414678929,-544.31,0.0003589,2]
[310244331,1704414678938,-500.0,0.0003589,2]
[310244332,1704414678948,-500.0,0.0003589,2]
[310244333,1704414678957,-292.55,0.0003589,2]
[310244334,1704414678967,-1124.47,0.0003589,2]
[310244335,1704414678977,-500.0,0.0003589,2]
[310244336,1704414678986,-500.0,0.0003589,2]
[310244337,1704414678995,-500.0,0.0003589,2]
[310244338,1704414679005,-500.0,0.0003589,2]
[310244339,1704414679014,-678.19,0.0003589,2]
[310244340,1704414679023,-287.41,0.0003589,2]
[310244341,1704414679033,-500.0,0.0003589,2]
[310244342,1704414679042,-193.48,0.0003589,2]
[310244343,1704414679052,-500.0,0.0003589,2]
[310244344,1704414679061,-500.0,0.0003589,2]
[310244345,1704414679070,-500.0,0.0003589,2]
[310244346,1704414679079,-500.0,0.0003589,2]
[310244347,1704414679089,-500.0,0.0003589,2]
[310244348,1704414679099,-575.53,0.0003589,2]
[310244349,1704414679108,-500.0,0.0003589,2]
[310244350,1704414679118,-750.66,0.0003589,2]
[310244351,1704414679127,-500.0,0.0003589,2]
[310244352,1704414679139,-500.0,0.0003589,2]
[310244353,1704414679149,-500.0,0.0003589,2]
[310244354,1704414679158,-362.08,0.0003589,2]
[310244355,1704414679167,-500.0,0.0003589,2]
[310244356,1704414679177,-500.0,0.0003589,2]
[310244357,1704414679187,-888.28,0.0003589,2]
[310244358,1704414679197,-500.0,0.0003589,2]
[310244359,1704414679207,-500.0,0.0003589,2]
[310244360,1704414679217,-500.0,0.0003589,2]
[310244361,1704414679226,-500.0,0.0003589,2]
[310244362,1704414679236,-500.0,0.0003589,2]
[310244363,1704414679246,-723.54,0.0003589,2]
[310244364,1704414679256,-500.0,0.0003589,2]
[310244365,1704414679266,-500.0,0.0003589,2]
[310244366,1704414679275,-556.3,0.0003589,2]
[310244367,1704414679285,-500.0,0.0003589,2]
[310244368,1704414679295,-500.0,0.0003589,2]
[310244369,1704414679305,-500.0,0.0003589,2]
[310244370,1704414679315,-608.52,0.0003589,2]
[310244371,1704414679324,-500.0,0.0003589,2]
[310244372,1704414679337,-169.79,0.0003589,2]
[310244373,1704414679346,-500.0,0.0003589,2]
[310244374,1704414679356,-206.59,0.0003589,2]
[310244375,1704414679365,-500.0,0.0003589,2]
[310244376,1704414679375,-500.0,0.0003589,2]
[310244377,1704414679386,-500.0,0.0003589,2]
[310244378,1704414679395,-584.88,0.0003589,2]
[310244379,1704414679404,-886.13,0.0003589,2]
[310244380,1704414679413,-501.68,0.0003589,2]
[310244381,1704414679423,-500.0,0.0003589,2]
[310244382,1704414679432,-500.0,0.0003589,2]
[310244383,1704414679443,-500.0,0.0003589,2]
[310244384,1704414679452,-500.0,0.0003589,2]
[310244385,1704414679462,-500.0,0.0003589,2]
[310244386,1704414679472,-584.65,0.0003589,2]
[310244387,1704414679481,-1517.74,0.0003589,2]
[310244388,1704414679491,-480.53,0.0003589,2]
[310244389,1704414679500,-939.87,0.0003589,2]
[310244390,1704414679510,-267.5,0.0003589,2]
[310244391,1704414679519,-2022.65,0.0003589,2]
[310244392,1704414679528,-647.31,0.0003589,2]
[310244393,1704414679538,-919.18,0.0003589,2]
[310244394,1704414679547,-500.0,0.0003589,2]
[310244395,1704414679556,-808.57,0.0003589,2]
[310244396,1704414679565,-500.0,0.0003589,2]
[310244397,1704414679574,-500.0,0.0003589,2]
[310244398,1704414679584,-1527.38,0.0003589,2]
[310244399,1704414679594,-695.92,0.0003589,2]
[310244400,1704414679604,-970.8,0.0003589,2]
[310244401,1704414679613,-500.0,0.0003589,2]
[310244402,1704414679623,-500.0,0.0003589,2]
[310244403,1704414679633,-500.0,0.0003589,2]
[310244404,1704414679643,-249.08,0.0003589,2]
[310244405,1704414679652,-893.29,0.0003589,2]
[310244406,1704414679661,-6653.01,0.0003589,2]
[310244407,1704414679670,-632.38,0.0003589,2]
[310244408,1704414679680,-1177.25,0.0003589,2]
[310244409,1704414679689,-500.0,0.0003589,2]
[310244410,1704414679698,-1817.42,0.0003589,2]
[310244411,1704414679707,-500.0,0.0003589,2]
[310244412,1704414679717,-1325.73,0.0003589,2]
[310244413,1704414679726,-638.74,0.0003589,2]
[310244414,1704414679735,-1358.51,0.0003589,2]
[310244415,1704414679746,-500.0,0.0003589,2]
[310244416,1704414679755,-1081.26,0.0003589,2]
[310244417,1704414679766,-556.12,0.0003589,2]
[310244418,1704414679778,-500.0,0.0003589,2]
[310244419,1704414679788,-1314.11,0.0003589,2]
[310244420,1704414679798,-500.0,0.0003589,2]
[310244421,1704414679808,-4577.94,0.0003589,2]
[310244422,1704414679817,-21013.31,0.0003589,2]
[310244423,1704414679827,-500.0,0.0003589,2]
[310244424,1704414679837,-32339.89,0.0003589,2]
[310244425,1704414679846,-2096.26,0.0003589,2]
[310244426,1704414679855,-612.35,0.0003589,2]
[310244427,1704414679866,-509.98,0.0003589,2]
[310244428,1704414679876,-980.38,0.0003589,2]
[310244429,1704414679889,-970.25,0.0003589,2]
[310244430,1704414679898,-476.72,0.0003589,2]
[310244431,1704414679908,-151.0,0.0003589,7]
[310244432,1704414679917,-151.0,0.0003589,7]
[310244433,1704414679928,-151.0,0.0003589,7]
[310244434,1704414679941,-151.0,0.0003589,7]
[310244435,1704414679951,-151.0,0.00035914,2]
[310244436,1704414679960,-160.492194,0.00035914,2]
[310244437,1704414679971,-937.47,0.00035965,2]
[310244438,1704414679981,-400.36,0.00035965,2]
[310244439,1704414679991,-400.36,0.00035965,2]
[310244440,1704414680001,-400.36,0.00035965,2]
[310244441,1704414680011,-395.12,0.00035965,2]
[310244442,1704414680021,-760.92227324,0.00036,4]
[310244443,1704414680031,-15768.8168836,0.00036,4]
[310244444,1704414680041,-150.41349596,0.00036,2]
[310244445,1704414680051,-394.64432978,0.00036089,2]
[310244446,1704414680062,-394.64432969,0.00036089,2]
[310244447,1704414680072,-394.64432969,0.00036089,2]
[310244448,1704414680083,-394.64432969,0.00036089,2]
[310244449,1704414680093,-394.64432969,0.00036089,2]
[310244450,1704414680103,-394.64432969,0.00036089,2]
[310244451,1704414680113,-394.64432969,0.00036089,2]
[310244452,1704414680123,-157.40105,0.00036098,2]
[310244453,1704414680134,-448.35,0.00036107,2]
[310244454,1704414680144,-394.64432969,0.00036122,2]
[310244455,1704414680154,-500.0,0.00036164,2]
[310244456,1704414680163,-500.0,0.00036164,2]
[310244457,1704414680173,-500.0,0.00036164,2]
[310244458,1704414680183,-500.0,0.00036164,2]
[310244459,1704414680192,-344.18,0.00036164,2]
[310244460,1704414680201,-500.0,0.00036164,2]
[310244461,1704414680211,-512.12,0.00036164,2]
[310244462,1704414680220,-500.0,0.00036164,2]
[310244463,1704414680229,-500.0,0.00036164,2]
[310244464,1704414680239,-544.31,0.00036164,2]
[310244465,1704414680248,-500.0,0.00036164,2]
[310244466,1704414680257,-500.0,0.00036164,2]
[310244467,1704414680267,-1124.47,0.00036164,2]
[310244468,1704414680276,-500.0,0.00036164,2]
[310244469,1704414680285,-500.0,0.00036164,2]
[310244470,1704414680295,-500.0,0.00036164,2]
[310244471,1704414680305,-500.0,0.00036164,2]
[310244472,1704414680314,-678.19,0.00036164,2]
[310244473,1704414680324,-500.0,0.00036164,2]
[310244474,1704414680335,-500.0,0.00036164,2]
[310244475,1704414680345,-500.0,0.00036164,2]
[310244476,1704414680354,-500.0,0.00036164,2]
[310244477,1704414680363,-500.0,0.00036164,2]
[310244478,1704414680374,-500.0,0.00036164,2]
[310244479,1704414680384,-500.0,0.00036164,2]
[310244480,1704414680393,-750.66,0.00036164,2]
[310244481,1704414680404,-500.0,0.00036164,2]
[310244482,1704414680413,-500.0,0.00036164,2]
[310244483,1704414680423,-500.0,0.00036164,2]
[310244484,1704414680433,-500.0,0.00036164,2]
[310244485,1704414680442,-196.41,0.00036164,2]
[310244486,1704414680452,-888.28,0.00036164,2]
[310244487,1704414680461,-500.0,0.00036164,2]
[310244488,1704414680470,-500.0,0.00036164,2]
[310244489,1704414680480,-377.17988772,0.00036164,2]
[310244490,1704414680490,-500.0,0.00036164,2]
[310244491,1704414680500,-500.0,0.00036164,2]
[310244492,1704414680509,-723.54,0.00036164,2]
[310244493,1704414680518,-500.0,0.00036164,2]
[310244494,1704414680527,-500.0,0.00036164,2]
[310244495,1704414680537,-500.0,0.00036164,2]
[310244496,1704414680547,-165.94664845,0.00036164,2]
[310244497,1704414680557,-500.0,0.00036164,2]
[310244498,1704414680566,-608.52,0.00036164,2]
[310244499,1704414680575,-500.0,0.00036164,2]
[310244500,1704414680585,-500.0,0.00036164,2]
[310244501,1704414680594,-500.0,0.00036164,2]
[310244502,1704414680604,-500.0,0.00036164,2]
[310244503,1704414680613,-500.0,0.00036164,2]
[310244504,1704414680622,-886.13,0.00036164,2]
[310244505,1704414680632,-501.68,0.00036164,2]
[310244506,1704414680642,-500.0,0.00036164,2]
[310244507,1704414680651,-500.0,0.00036164,2]
[310244508,1704414680662,-500.0,0.00036164,2]
[310244509,1704414680672,-500.0,0.00036164,2]
[310244510,1704414680681,-584.65,0.00036164,2]
[310244511,1704414680691,-1517.74,0.00036164,2]
[310244512,1704414680700,-939.87,0.00036164,2]
[310244513,1704414680710,-2022.65,0.00036164,2]
[310244514,1704414680719,-647.31,0.00036164,2]
[310244515,1704414680729,-919.18,0.00036164,2]
[310244516,1704414680738,-500.0,0.00036164,2]
[310244517,1704414680747,-808.57,0.00036164,2]
[310244518,1704414680756,-500.0,0.00036164,2]
[310244519,1704414680765,-483.55434356,0.00036164,2]
[310244520,1704414680777,-1527.38,0.00036164,2]
[310244521,1704414680786,-695.92,0.00036164,2]
[310244522,1704414680796,-970.8,0.00036164,2]
[310244523,1704414680805,-500.0,0.00036164,2]
[310244524,1704414680814,-500.0,0.00036164,2]
[310244525,1704414680825,-500.0,0.00036164,2]
[310244526,1704414680834,-893.29,0.00036164,2]
[310244527,1704414680843,-6653.01,0.00036164,2]
[310244528,1704414680853,-1177.25,0.00036164,2]
[310244529,1704414680862,-500.0,0.00036164,2]
[310244530,1704414680871,-1817.42,0.00036164,2]
[310244531,1704414680881,-500.0,0.00036164,2]
[310244532,1704414680891,-1325.73,0.00036164,2]
[310244533,1704414680900,-638.74,0.00036164,2]
[310244534,1704414680909,-1358.51,0.00036164,2]
[310244535,1704414680919,-500.0,0.00036164,2]
[310244536,1704414680929,-1081.26,0.00036164,2]
[310244537,1704414680938,-556.12,0.00036164,2]
[310244538,1704414680948,-527.87,0.00036164,2]
[310244539,1704414680956,-1314.11,0.00036164,2]
[310244540,1704414680966,-500.0,0.00036164,2]
[310244541,1704414680975,-4577.94,0.00036164,2]
[310244542,1704414680985,-21013.31,0.00036164,2]
[310244543,1704414680995,-500.0,0.00036164,2]
[310244544,1704414681005,-32339.89,0.00036164,2]
[310244545,1704414681014,-2096.26,0.00036164,2]
[310244546,1704414681024,-612.35,0.00036164,2]
[310244547,1704414681034,-509.98,0.00036164,2]
[310244548,1704414681043,-980.38,0.00036164,2]
[310244549,1704414681053,-970.25,0.00036164,2]
[310244550,1704414681063,-157.40105,0.00036198,2]
[310244551,1704414681072,-159.257693,0.00036208,2]
[310244552,1704414681082,-500.0,0.00036268,2]
[310244553,1704414681206,-318.0,0.0003628,2]
[310244554,1704414681216,-19638.0,0.0003628,2]
[310244555,1704414681226,-150.0,0.0003628,2]
[310244556,1704414681235,-1841.0,0.0003628,2]
[310244557,1704414681245,-940.0,0.0003628,2]
[310244558,1704414681255,-833.0,0.0003628,2]
[310244559,1704414681265,-357.866,0.0003628,2]
[310244560,1704414681275,-157.40105,0.00036298,2]
[310244561,1704414681284,-917.31,0.000363,7]
[310244562,1704414681294,-13018.92,0.000363,7]
[310244563,1704414681304,-155.05696804,0.00036357,14]
[310244564,1704414681313,-157.40105,0.00036398,2]
[310244565,1704414681322,-4625.45,0.000364,7]
[310244566,1704414681332,-500.0,0.00036438,2]
[310244567,1704414681342,-500.0,0.00036438,2]
[310244568,1704414681352,-500.0,0.00036438,2]
[310244569,1704414681361,-500.0,0.00036438,2]
[310244570,1704414681371,-500.0,0.00036438,2]
[310244571,1704414681380,-512.12,0.00036438,2]
[310244572,1704414681390,-500.0,0.00036438,2]
[310244573,1704414681400,-500.0,0.00036438,2]
[310244574,1704414681409,-544.31,0.00036438,2]
[310244575,1704414681419,-500.0,0.00036438,2]
[310244576,1704414681428,-1124.47,0.00036438,2]
[310244577,1704414681439,-500.0,0.00036438,2]
[310244578,1704414681448,-500.0,0.00036438,2]
[310244579,1704414681458,-500.0,0.00036438,2]
[310244580,1704414681468,-453.32783154,0.00036438,2]
[310244581,1704414681478,-678.19,0.00036438,2]
[310244582,1704414681488,-500.0,0.00036438,2]
[310244583,1704414681497,-484.46,0.00036438,2]
[310244584,1704414681507,-500.0,0.00036438,2]
[310244585,1704414681517,-351.24840201,0.00036438,2]
[310244586,1704414681528,-500.0,0.00036438,2]
[310244587,1704414681538,-500.0,0.00036438,2]
[310244588,1704414681547,-500.0,0.00036438,2]
[310244589,1704414681557,-750.66,0.00036438,2]
[310244590,1704414681566,-500.0,0.00036438,2]
[310244591,1704414681576,-500.0,0.00036438,2]
[310244592,1704414681586,-500.0,0.00036438,2]
[310244593,1704414681596,-500.0,0.00036438,2]
[310244594,1704414681605,-888.28,0.00036438,2]
[310244595,1704414681615,-321.91,0.00036438,2]
[310244596,1704414681625,-500.0,0.00036438,2]
[310244597,1704414681634,-500.0,0.00036438,2]
[310244598,1704414681644,-500.0,0.00036438,2]
[310244599,1704414681653,-723.54,0.00036438,2]
[310244600,1704414681663,-500.0,0.00036438,2]
[310244601,1704414681672,-500.0,0.00036438,2]
[310244602,1704414681681,-500.0,0.00036438,2]
[310244603,1704414681691,-232.19,0.00036438,2]
[310244604,1704414681701,-608.52,0.00036438,2]
[310244605,1704414681710,-625.96,0.00036438,2]
[310244606,1704414681719,-500.0,0.00036438,2]
[310244607,1704414681729,-500.0,0.00036438,2]
[310244608,1704414681739,-500.0,0.00036438,2]
[310244609,1704414681749,-500.0,0.00036438,2]
[310244610,1704414681759,-886.13,0.00036438,2]
[310244611,1704414681772,-501.68,0.00036438,2]
[310244612,1704414681782,-500.0,0.00036438,2]
[310244613,1704414681792,-500.0,0.00036438,2]
[310244614,1704414681803,-500.0,0.00036438,2]
[310244615,1704414681811,-500.0,0.00036438,2]
[310244616,1704414681822,-584.65,0.00036438,2]
[310244617,1704414681831,-1517.74,0.00036438,2]
[310244618,1704414681841,-939.87,0.00036438,2]
[310244619,1704414681850,-2022.65,0.00036438,2]
[310244620,1704414681859,-647.31,0.00036438,2]
[310244621,1704414681870,-919.18,0.00036438,2]
[310244622,1704414681879,-500.0,0.00036438,2]
[310244623,1704414681889,-808.57,0.00036438,2]
[310244624,1704414681898,-1527.38,0.00036438,2]
[310244625,1704414681907,-695.92,0.00036438,2]
[310244626,1704414681917,-970.8,0.00036438,2]
[310244627,1704414681927,-500.0,0.00036438,2]
[310244628,1704414681936,-500.0,0.00036438,2]
[310244629,1704414681946,-500.0,0.00036438,2]
[310244630,1704414681955,-893.29,0.00036438,2]
[310244631,1704414681965,-6653.01,0.00036438,2]
[310244632,1704414681975,-1177.25,0.00036438,2]
[310244633,1704414681985,-500.0,0.00036438,2]
[310244634,1704414681995,-1817.42,0.00036438,2]
[310244635,1704414682005,-264.19,0.00036438,2]
[310244636,1704414682015,-1325.73,0.00036438,2]
[310244637,1704414682025,-638.74,0.00036438,2]
[310244638,1704414682034,-1358.51,0.00036438,2]
[310244639,1704414682043,-500.0,0.00036438,2]
[310244640,1704414682053,-1081.26,0.00036438,2]
[310244641,1704414682064,-556.12,0.00036438,2]
[310244642,1704414682073,-1314.11,0.00036438,2]
[310244643,1704414682083,-500.0,0.00036438,2]
[310244644,1704414682092,-4577.94,0.00036438,2]
[310244645,1704414682102,-21013.31,0.00036438,2]
[310244646,1704414682112,-500.0,0.00036438,2]
[310244647,1704414682122,-32339.89,0.00036438,2]
[310244648,1704414682132,-2096.26,0.00036438,2]
[310244649,1704414682142,-612.35,0.00036438,2]
[310244650,1704414682151,-509.98,0.00036438,2]
[310244651,1704414682160,-980.38,0.00036438,2]
[310244652,1704414682170,-970.25,0.00036438,2]
[310244653,1704414682179,-5737.84206439,0.00036438,2]
[310244654,1704414682188,-674.8990366,0.00036458,2]
[310244655,1704414682197,-13228.78816612,0.00036483,10]
[310244656,1704414682206,-9295.23292806,0.00036483,10]
[310244657,1704414682215,-14404.53297591,0.00036483,10]
[310244658,1704414682225,-8245.4738619,0.00036483,10]
[310244659,1704414682236,-12378.9599795,0.00036483,10]
[310244660,1704414682245,-16998.0109027,0.00036483,10]
[310244661,1704414682255,-151.0,0.00036483,7]
[310244662,1704414682264,-151.0,0.00036483,7]
[310244663,1704414682274,-1175.413069,0.00036483,7]
[310244664,1704414682284,-1175.413069,0.00036483,7]
[310244665,1704414682293,-151.0,0.00036483,7]
[310244666,1704414682303,-151.0,0.00036483,7]
[310244667,1704414682312,-151.0,0.00036483,7]
[310244668,1704414682322,-157.40105,0.00036498,2]